[Event "Titled Tuesday Blitz May 4 2021"]
[White "Lopez Del Alamo, Antonio"]
[Black "Gusarov, Grigory"]
[WhiteFideId "2227339"]
[BlackFideId "24102172"]
[WhiteElo "2098"]
[BlackElo "2285"]
[Result "0-1"]
[Round "05"]
[TimeControl "180+1"]
[Date "2021.05.04"]
[WhiteClock "0:00:17"]
[BlackClock "0:00:44"]

1. e4 {[%clk 0:03:00]}  d5 {[%clk 0:02:54]} 2. exd5 {[%clk 0:03:00]}  Nf6 {[%clk 0:02:55]} 3. d4 {[%clk 0:02:59]}  Nxd5 {[%clk 0:02:55]} 4. Nf3 {[%clk 0:02:51]}  g6 {[%clk 0:02:53]} 5. Be2 {[%clk 0:02:43]}  Bg7 {[%clk 0:02:52]} 6. O-O {[%clk 0:02:42]}  O-O {[%clk 0:02:52]} 7. c4 {[%clk 0:02:40]}  Nb6 {[%clk 0:02:53]} 8. Nc3 {[%clk 0:02:38]}  Bg4 {[%clk 0:02:52]} 9. Qb3 {[%clk 0:02:20]}  Nc6 {[%clk 0:02:47]} 10. Be3 {[%clk 0:02:08]}  Bxf3 {[%clk 0:02:44]} 11. Bxf3 {[%clk 0:02:06]}  Na5 {[%clk 0:02:38]} 12. Qb4 {[%clk 0:01:52]}  Nbxc4 {[%clk 0:02:29]} 13. b3 {[%clk 0:01:33]}  c5 {[%clk 0:01:58]} 14. Qxc5 {[%clk 0:01:21]}  Rc8 {[%clk 0:01:56]} 15. Qb4 {[%clk 0:01:17]}  Nxe3 {[%clk 0:01:38]} 16. fxe3 {[%clk 0:01:18]}  Nc6 {[%clk 0:01:38]} 17. Qa4 {[%clk 0:01:16]}  Nxd4 {[%clk 0:01:36]} 18. exd4 {[%clk 0:01:17]}  Rxc3 {[%clk 0:01:36]} 19. Rad1 {[%clk 0:01:11]}  Qb6 {[%clk 0:01:31]} 20. Kh1 {[%clk 0:01:08]}  Rd8 {[%clk 0:01:26]} 21. d5 {[%clk 0:01:08]}  Bf6 {[%clk 0:01:24]} 22. Rfe1 {[%clk 0:00:44]}  Kg7 {[%clk 0:01:22]} 23. h3 {[%clk 0:00:39]}  a6 {[%clk 0:01:19]} 24. Qe4 {[%clk 0:00:29]}  h5 {[%clk 0:01:14]} 25. Qa4 {[%clk 0:00:28]}  Rc2 {[%clk 0:01:06]} 26. Rc1 {[%clk 0:00:23]}  Rdc8 {[%clk 0:01:02]} 27. Rxc2 {[%clk 0:00:19]}  Rxc2 {[%clk 0:01:03]} 28. Qe8 {[%clk 0:00:19]}  Qf2 {[%clk 0:00:58]} 29. Rd1 {[%clk 0:00:18]}  Rd2 {[%clk 0:00:52]} 30. Rxd2 {[%clk 0:00:17]}  Qe1+ {[%clk 0:00:52]} 31. Kh2 {[%clk 0:00:17]}  Be5+ {[%clk 0:00:52]} 32. g3 {[%clk 0:00:17]}  Qxg3+ {[%clk 0:00:45]} 33. Kh1 {[%clk 0:00:16]}  Qxf3+ {[%clk 0:00:45]} 34. Rg2 {[%clk 0:00:17]}  Qxh3+ {[%clk 0:00:45]} 35. Kg1 {[%clk 0:00:17]}  Bd4+ {[%clk 0:00:45]} 36. Kf1 {[%clk 0:00:17]}  Qf3+ {[%clk 0:00:44]} 37. Ke1 {[%clk 0:00:17]}  Qxg2 {[%clk 0:00:44]} 0-1


[Site "https://www.chess.com"]

[Event "Titled Tuesday Blitz May 4 2021"]
[White "Lopez Gracia, Fernando"]
[Black "Poormosavi, Seyed Kian"]
[WhiteFideId "2207184"]
[BlackFideId "12585807"]
[WhiteElo "2331"]
[BlackElo "2134"]
[Result "0-1"]
[Round "05"]
[TimeControl "180+1"]
[Date "2021.05.04"]
[WhiteClock "0:00:26"]
[BlackClock "0:01:50"]

1. c4 {[%clk 0:03:00]}  Nf6 {[%clk 0:02:58]} 2. Nc3 {[%clk 0:03:01]}  c5 {[%clk 0:02:56]} 3. Nf3 {[%clk 0:03:00]}  b6 {[%clk 0:02:56]} 4. g3 {[%clk 0:02:59]}  Bb7 {[%clk 0:02:56]} 5. Bg2 {[%clk 0:02:59]}  g6 {[%clk 0:02:56]} 6. b3 {[%clk 0:02:57]}  Bg7 {[%clk 0:02:56]} 7. Bb2 {[%clk 0:02:58]}  O-O {[%clk 0:02:57]} 8. O-O {[%clk 0:02:58]}  d5 {[%clk 0:02:57]} 9. cxd5 {[%clk 0:02:49]}  Nxd5 {[%clk 0:02:58]} 10. d4 {[%clk 0:02:50]}  Nxc3 {[%clk 0:02:56]} 11. Bxc3 {[%clk 0:02:50]}  cxd4 {[%clk 0:02:53]} 12. Bxd4 {[%clk 0:02:37]}  Bxf3 {[%clk 0:02:44]} 13. Bxf3 {[%clk 0:02:32]}  Bxd4 {[%clk 0:02:36]} 14. Rc1 {[%clk 0:02:26]}  Na6 {[%clk 0:02:26]} 15. Bxa8 {[%clk 0:02:24]}  Bxf2+ {[%clk 0:02:26]} 16. Rxf2 {[%clk 0:02:22]}  Qxa8 {[%clk 0:02:27]} 17. Qd7 {[%clk 0:02:15]}  Qe4 {[%clk 0:02:13]} 18. Qxa7 {[%clk 0:02:04]}  Qe3 {[%clk 0:02:12]} 19. Rc6 {[%clk 0:01:54]}  Rd8 {[%clk 0:01:59]} 20. Qxb6 {[%clk 0:01:25]}  Rd1+ {[%clk 0:01:58]} 21. Kg2 {[%clk 0:01:26]}  Qe4+ {[%clk 0:01:59]} 22. Rf3 {[%clk 0:01:23]}  Rd2 {[%clk 0:02:00]} 23. Rc8+ {[%clk 0:00:47]}  Kg7 {[%clk 0:01:58]} 24. Qc6 {[%clk 0:00:33]}  Qxe2+ {[%clk 0:01:55]} 25. Kh3 {[%clk 0:00:27]}  Qxh2+ {[%clk 0:01:54]} 26. Kg4 {[%clk 0:00:27]}  Rd4+ {[%clk 0:01:50]} 27. Rf4 {[%clk 0:00:26]}  Qh5# {[%clk 0:01:50]} 0-1


[Site "https://www.chess.com"]

[Event "Titled Tuesday Blitz May 4 2021"]
[White "Loy, Konstantin"]
[Black "Ognean, Mihnea-Ionut"]
[WhiteFideId "14122499"]
[BlackFideId "1232347"]
[WhiteElo "2084"]
[BlackElo "2012"]
[Result "0-1"]
[Round "05"]
[TimeControl "180+1"]
[Date "2021.05.04"]
[WhiteClock "0:00:24"]
[BlackClock "0:00:29"]

1. e4 {[%clk 0:03:00]}  c5 {[%clk 0:02:59]} 2. Nf3 {[%clk 0:03:00]}  Nc6 {[%clk 0:02:59]} 3. Nc3 {[%clk 0:03:00]}  e5 {[%clk 0:02:58]} 4. Bc4 {[%clk 0:02:59]}  Be7 {[%clk 0:02:57]} 5. d3 {[%clk 0:02:58]}  Nf6 {[%clk 0:02:56]} 6. Ng5 {[%clk 0:02:51]}  O-O {[%clk 0:02:56]} 7. f4 {[%clk 0:02:51]}  exf4 {[%clk 0:02:49]} 8. Bxf4 {[%clk 0:02:50]}  h6 {[%clk 0:02:40]} 9. Nf3 {[%clk 0:02:49]}  d6 {[%clk 0:02:40]} 10. O-O {[%clk 0:02:49]}  Na5 {[%clk 0:02:30]} 11. Qd2 {[%clk 0:02:46]}  Be6 {[%clk 0:02:02]} 12. b3 {[%clk 0:02:41]}  a6 {[%clk 0:01:48]} 13. a4 {[%clk 0:02:35]}  Nc6 {[%clk 0:01:24]} 14. h3 {[%clk 0:02:19]}  Nb4 {[%clk 0:01:23]} 15. Rae1 {[%clk 0:02:03]}  Re8 {[%clk 0:01:14]} 16. Bxe6 {[%clk 0:01:52]}  fxe6 {[%clk 0:01:14]} 17. e5 {[%clk 0:01:52]}  Nfd5 {[%clk 0:01:10]} 18. exd6 {[%clk 0:01:41]}  Bxd6 {[%clk 0:01:08]} 19. Be5 {[%clk 0:01:31]}  Nc6 {[%clk 0:00:53]} 20. Bxd6 {[%clk 0:01:15]}  Qxd6 {[%clk 0:00:54]} 21. Ne4 {[%clk 0:01:14]}  Qe7 {[%clk 0:00:50]} 22. Qf2 {[%clk 0:01:06]}  b6 {[%clk 0:00:43]} 23. Qg3 {[%clk 0:01:05]}  Rf8 {[%clk 0:00:41]} 24. Ne5 {[%clk 0:00:57]}  Nd4 {[%clk 0:00:30]} 25. Rxf8+ {[%clk 0:00:45]}  Qxf8 {[%clk 0:00:30]} 26. Rf1 {[%clk 0:00:40]}  Ne2+ {[%clk 0:00:29]} 27. Kh2 {[%clk 0:00:24]}  Qxf1 {[%clk 0:00:29]} 0-1


[Site "https://www.chess.com"]

[Event "Titled Tuesday Blitz May 4 2021"]
[White "MATHEUSMDR2005"]
[Black "Erdogdu, Mert"]
[BlackFideId "6301495"]
[WhiteElo "2356"]
[BlackElo "2485"]
[Result "0-1"]
[Round "05"]
[TimeControl "180+1"]
[Date "2021.05.04"]
[WhiteClock "0:00:16"]
[BlackClock "0:01:03"]

1. c4 {[%clk 0:02:01]}  e6 {[%clk 0:02:58]} 2. Nf3 {[%clk 0:02:01]}  d5 {[%clk 0:02:58]} 3. e3 {[%clk 0:02:02]}  c5 {[%clk 0:02:58]} 4. Nc3 {[%clk 0:02:02]}  Nf6 {[%clk 0:02:57]} 5. cxd5 {[%clk 0:02:03]}  exd5 {[%clk 0:02:57]} 6. d4 {[%clk 0:02:03]}  a6 {[%clk 0:02:48]} 7. Be2 {[%clk 0:02:02]}  c4 {[%clk 0:02:46]} 8. O-O {[%clk 0:02:02]}  Bb4 {[%clk 0:02:45]} 9. Ne5 {[%clk 0:01:59]}  O-O {[%clk 0:02:44]} 10. f4 {[%clk 0:01:54]}  Bf5 {[%clk 0:02:39]} 11. g4 {[%clk 0:01:45]}  Bxc3 {[%clk 0:02:34]} 12. bxc3 {[%clk 0:01:44]}  Be4 {[%clk 0:02:32]} 13. Bf3 {[%clk 0:01:36]}  Bxf3 {[%clk 0:02:32]} 14. Qxf3 {[%clk 0:01:37]}  Ne4 {[%clk 0:02:32]} 15. Bb2 {[%clk 0:01:31]}  Nd2 {[%clk 0:02:27]} 16. Qg3 {[%clk 0:01:21]}  Nxf1 {[%clk 0:02:26]} 17. Rxf1 {[%clk 0:01:22]}  f6 {[%clk 0:02:26]} 18. Nf3 {[%clk 0:01:15]}  Re8 {[%clk 0:02:25]} 19. Nh4 {[%clk 0:01:12]}  Nc6 {[%clk 0:02:25]} 20. Ba3 {[%clk 0:01:05]}  Qa5 {[%clk 0:02:23]} 21. Bd6 {[%clk 0:01:03]}  Qxc3 {[%clk 0:02:17]} 22. Rf3 {[%clk 0:01:04]}  Re6 {[%clk 0:02:13]} 23. g5 {[%clk 0:00:52]}  fxg5 {[%clk 0:01:47]} 24. Nf5 {[%clk 0:00:41]}  g4 {[%clk 0:01:05]} 25. Qxg4 {[%clk 0:00:36]}  Rg6 {[%clk 0:01:04]} 26. Qxg6 {[%clk 0:00:19]}  hxg6 {[%clk 0:01:04]} 27. e4 {[%clk 0:00:16]}  Qxf3 {[%clk 0:01:03]} 0-1


[Site "https://www.chess.com"]

[Event "Titled Tuesday Blitz May 4 2021"]
[White "Maiorov, Nikita"]
[Black "Lamaze, Simon"]
[WhiteFideId "13501720"]
[BlackFideId "36069264"]
[WhiteElo "2440"]
[BlackElo "1938"]
[Result "1-0"]
[Round "05"]
[TimeControl "180+1"]
[Date "2021.05.04"]
[WhiteClock "0:01:47"]
[BlackClock "0:00:46"]

1. d4 {[%clk 0:02:54]}  Nf6 {[%clk 0:02:58]} 2. c4 {[%clk 0:02:54]}  e6 {[%clk 0:02:56]} 3. Nf3 {[%clk 0:02:53]}  d5 {[%clk 0:02:55]} 4. Nc3 {[%clk 0:02:52]}  Bb4 {[%clk 0:02:53]} 5. Bg5 {[%clk 0:02:51]}  O-O {[%clk 0:02:44]} 6. e3 {[%clk 0:02:47]}  c6 {[%clk 0:02:41]} 7. Bd3 {[%clk 0:02:44]}  Qa5 {[%clk 0:02:40]} 8. O-O {[%clk 0:02:29]}  Bxc3 {[%clk 0:02:38]} 9. bxc3 {[%clk 0:02:28]}  Nbd7 {[%clk 0:02:29]} 10. Qc2 {[%clk 0:02:24]}  h6 {[%clk 0:02:26]} 11. Bf4 {[%clk 0:02:23]}  b6 {[%clk 0:02:19]} 12. Nd2 {[%clk 0:02:20]}  Ba6 {[%clk 0:02:17]} 13. a4 {[%clk 0:02:18]}  Rfc8 {[%clk 0:02:08]} 14. Nb3 {[%clk 0:02:17]}  dxc4 {[%clk 0:01:58]} 15. Bh7+ {[%clk 0:02:16]}  Nxh7 {[%clk 0:01:55]} 16. Nxa5 {[%clk 0:02:15]}  bxa5 {[%clk 0:01:55]} 17. e4 {[%clk 0:02:14]}  Nhf6 {[%clk 0:01:54]} 18. Rad1 {[%clk 0:02:11]}  Re8 {[%clk 0:01:39]} 19. Bd6 {[%clk 0:02:10]}  Rac8 {[%clk 0:01:31]} 20. f4 {[%clk 0:02:09]}  c5 {[%clk 0:01:25]} 21. dxc5 {[%clk 0:02:07]}  Nxc5 {[%clk 0:01:26]} 22. Bxc5 {[%clk 0:02:07]}  Rxc5 {[%clk 0:01:24]} 23. Rfe1 {[%clk 0:01:59]}  Rc7 {[%clk 0:01:20]} 24. e5 {[%clk 0:01:56]}  Nd5 {[%clk 0:01:19]} 25. f5 {[%clk 0:01:56]}  Bb7 {[%clk 0:01:14]} 26. f6 {[%clk 0:01:52]}  g6 {[%clk 0:01:11]} 27. Rd4 {[%clk 0:01:50]}  Rd7 {[%clk 0:00:55]} 28. Qc1 {[%clk 0:01:48]}  h5 {[%clk 0:00:46]} 29. Qh6 {[%clk 0:01:47]} 1-0


[Site "https://www.chess.com"]

[Event "Titled Tuesday Blitz May 4 2021"]
[White "Maly, Alexey"]
[Black "Alavkin, Arseny"]
[WhiteFideId "14103184"]
[BlackFideId "4120612"]
[WhiteElo "2314"]
[BlackElo "2416"]
[Result "0-1"]
[Round "05"]
[TimeControl "180+1"]
[Date "2021.05.04"]
[WhiteClock "0:01:34"]
[BlackClock "0:00:56"]

1. d4 {[%clk 0:03:00]}  Nf6 {[%clk 0:02:59]} 2. c4 {[%clk 0:03:01]}  g6 {[%clk 0:02:59]} 3. Nc3 {[%clk 0:03:01]}  Bg7 {[%clk 0:03:00]} 4. e4 {[%clk 0:03:01]}  d6 {[%clk 0:03:00]} 5. Be2 {[%clk 0:03:02]}  O-O {[%clk 0:03:01]} 6. Nf3 {[%clk 0:03:02]}  e5 {[%clk 0:02:59]} 7. O-O {[%clk 0:03:03]}  Na6 {[%clk 0:02:59]} 8. d5 {[%clk 0:03:03]}  Nc5 {[%clk 0:02:58]} 9. Qc2 {[%clk 0:03:03]}  a5 {[%clk 0:02:59]} 10. Ne1 {[%clk 0:03:04]}  Ne8 {[%clk 0:02:55]} 11. Be3 {[%clk 0:03:04]}  f5 {[%clk 0:02:54]} 12. f3 {[%clk 0:03:04]}  f4 {[%clk 0:02:54]} 13. Bf2 {[%clk 0:03:05]}  g5 {[%clk 0:02:54]} 14. b3 {[%clk 0:03:06]}  h5 {[%clk 0:02:53]} 15. Rb1 {[%clk 0:03:06]}  Bd7 {[%clk 0:02:47]} 16. a3 {[%clk 0:03:06]}  a4 {[%clk 0:02:47]} 17. b4 {[%clk 0:03:04]}  Nb3 {[%clk 0:02:46]} 18. Kh1 {[%clk 0:03:01]}  g4 {[%clk 0:02:45]} 19. Nd3 {[%clk 0:02:52]}  Qg5 {[%clk 0:02:41]} 20. Qd1 {[%clk 0:02:45]}  Nd4 {[%clk 0:02:36]} 21. Bxd4 {[%clk 0:02:40]}  exd4 {[%clk 0:02:35]} 22. Nb5 {[%clk 0:02:40]}  Qh4 {[%clk 0:02:32]} 23. Kg1 {[%clk 0:02:20]}  g3 {[%clk 0:02:29]} 24. h3 {[%clk 0:02:17]}  Bxh3 {[%clk 0:02:30]} 25. gxh3 {[%clk 0:02:17]}  Qxh3 {[%clk 0:02:30]} 26. Rf2 {[%clk 0:02:18]}  gxf2+ {[%clk 0:02:30]} 27. Nxf2 {[%clk 0:02:19]}  Qg3+ {[%clk 0:02:28]} 28. Kf1 {[%clk 0:02:19]}  h4 {[%clk 0:02:10]} 29. Nxd4 {[%clk 0:02:19]}  h3 {[%clk 0:02:10]} 30. Ne6 {[%clk 0:02:07]}  h2 {[%clk 0:02:09]} 31. Bd3 {[%clk 0:02:04]}  Rf6 {[%clk 0:01:47]} 32. Ke2 {[%clk 0:02:03]}  Rh6 {[%clk 0:01:32]} 33. Qh1 {[%clk 0:02:03]}  Nf6 {[%clk 0:01:25]} 34. Nd4 {[%clk 0:01:56]}  Nxd5 {[%clk 0:01:21]} 35. Nf5 {[%clk 0:01:47]}  Nc3+ {[%clk 0:01:19]} 36. Kf1 {[%clk 0:01:47]}  Qg1+ {[%clk 0:01:04]} 37. Qxg1 {[%clk 0:01:47]}  hxg1=Q+ {[%clk 0:01:05]} 38. Kxg1 {[%clk 0:01:48]}  Rg6+ {[%clk 0:01:05]} 39. Kf1 {[%clk 0:01:46]}  Nxb1 {[%clk 0:01:06]} 40. Ne7+ {[%clk 0:01:42]}  Kf7 {[%clk 0:01:06]} 41. Nxg6 {[%clk 0:01:42]}  Kxg6 {[%clk 0:01:07]} 42. Bxb1 {[%clk 0:01:42]}  Bb2 {[%clk 0:01:08]} 43. e5+ {[%clk 0:01:39]}  Kf7 {[%clk 0:01:06]} 44. exd6 {[%clk 0:01:40]}  cxd6 {[%clk 0:01:07]} 45. Ne4 {[%clk 0:01:40]}  Ke7 {[%clk 0:01:01]} 46. c5 {[%clk 0:01:38]}  dxc5 {[%clk 0:01:02]} 47. Nxc5 {[%clk 0:01:36]}  Bxa3 {[%clk 0:01:03]} 48. Bc2 {[%clk 0:01:36]}  Bxb4 {[%clk 0:01:03]} 49. Nxa4 {[%clk 0:01:36]}  b5 {[%clk 0:01:00]} 50. Nb6 {[%clk 0:01:36]}  Ra1+ {[%clk 0:01:01]} 51. Ke2 {[%clk 0:01:36]}  Kd6 {[%clk 0:01:00]} 52. Be4 {[%clk 0:01:34]}  Ra2+ {[%clk 0:00:57]} 53. Kd3 {[%clk 0:01:34]}  Rd2# {[%clk 0:00:56]} 0-1


[Site "https://www.chess.com"]

[Event "Titled Tuesday Blitz May 4 2021"]
[White "Manukyan, Sargis A."]
[Black "Eynullayev, Altay"]
[WhiteFideId "13303970"]
[BlackFideId "13413562"]
[WhiteElo "2187"]
[BlackElo "2079"]
[Result "0-1"]
[Round "05"]
[TimeControl "180+1"]
[Date "2021.05.04"]
[WhiteClock "0:00:15"]
[BlackClock "0:00:05"]

1. d4 {[%clk 0:03:00]}  Nf6 {[%clk 0:02:59]} 2. c4 {[%clk 0:03:00]}  e6 {[%clk 0:02:57]} 3. Nc3 {[%clk 0:03:01]}  Bb4 {[%clk 0:02:57]} 4. a3 {[%clk 0:03:02]}  Bxc3+ {[%clk 0:02:55]} 5. bxc3 {[%clk 0:03:02]}  O-O {[%clk 0:02:43]} 6. e3 {[%clk 0:03:02]}  c5 {[%clk 0:02:43]} 7. Bd3 {[%clk 0:03:03]}  Nc6 {[%clk 0:02:42]} 8. Ne2 {[%clk 0:03:02]}  b6 {[%clk 0:02:42]} 9. O-O {[%clk 0:03:02]}  Ba6 {[%clk 0:02:42]} 10. e4 {[%clk 0:03:01]}  d6 {[%clk 0:02:37]} 11. f4 {[%clk 0:03:01]}  Na5 {[%clk 0:02:11]} 12. f5 {[%clk 0:02:57]}  Bxc4 {[%clk 0:01:59]} 13. Bxc4 {[%clk 0:02:51]}  Nxc4 {[%clk 0:01:59]} 14. Qd3 {[%clk 0:02:51]}  b5 {[%clk 0:01:43]} 15. Bg5 {[%clk 0:02:41]}  Nb6 {[%clk 0:01:22]} 16. Qxb5 {[%clk 0:02:27]}  Nbd7 {[%clk 0:01:12]} 17. Qc4 {[%clk 0:02:20]}  d5 {[%clk 0:01:08]} 18. exd5 {[%clk 0:02:17]}  exd5 {[%clk 0:01:09]} 19. Qd3 {[%clk 0:02:17]}  Qa5 {[%clk 0:00:39]} 20. Nf4 {[%clk 0:02:12]}  Rfe8 {[%clk 0:00:37]} 21. Qh3 {[%clk 0:02:03]}  cxd4 {[%clk 0:00:36]} 22. cxd4 {[%clk 0:02:03]}  Qd2 {[%clk 0:00:34]} 23. Ne6 {[%clk 0:01:55]}  Qc2 {[%clk 0:00:20]} 24. Nxg7 {[%clk 0:01:54]}  Ne4 {[%clk 0:00:15]} 25. Qg4 {[%clk 0:01:46]}  Kxg7 {[%clk 0:00:08]} 26. Bh6+ {[%clk 0:01:43]}  Kxh6 {[%clk 0:00:04]} 27. Rf3 {[%clk 0:01:43]}  Ng5 {[%clk 0:00:04]} 28. Qh4+ {[%clk 0:01:36]}  Kg7 {[%clk 0:00:04]} 29. Qxg5+ {[%clk 0:01:35]}  Kh8 {[%clk 0:00:04]} 30. Rf2 {[%clk 0:01:14]}  Qe4 {[%clk 0:00:04]} 31. Raf1 {[%clk 0:01:09]}  Rg8 {[%clk 0:00:04]} 32. Qh6 {[%clk 0:01:10]}  Qxd4 {[%clk 0:00:02]} 33. Kh1 {[%clk 0:01:07]}  Nf6 {[%clk 0:00:03]} 34. h3 {[%clk 0:01:05]}  Ne4 {[%clk 0:00:02]} 35. Rf4 {[%clk 0:00:58]}  Ng3+ {[%clk 0:00:03]} 36. Kh2 {[%clk 0:00:57]}  Nxf1+ {[%clk 0:00:03]} 37. Rxf1 {[%clk 0:00:56]}  Qe5+ {[%clk 0:00:04]} 38. Kh1 {[%clk 0:00:56]}  Qg7 {[%clk 0:00:05]} 39. Qd2 {[%clk 0:00:55]}  Rad8 {[%clk 0:00:05]} 40. f6 {[%clk 0:00:54]}  Qg3 {[%clk 0:00:05]} 41. Rf2 {[%clk 0:00:52]}  d4 {[%clk 0:00:05]} 42. Rf3 {[%clk 0:00:51]}  Qg5 {[%clk 0:00:04]} 43. Qf2 {[%clk 0:00:45]}  d3 {[%clk 0:00:05]} 44. Rf5 {[%clk 0:00:46]}  Qc1+ {[%clk 0:00:04]} 45. Kh2 {[%clk 0:00:45]}  d2 {[%clk 0:00:05]} 46. Rh5 {[%clk 0:00:31]}  d1=Q {[%clk 0:00:05]} 47. Rxh7+ {[%clk 0:00:21]}  Kxh7 {[%clk 0:00:05]} 48. Qf5+ {[%clk 0:00:22]}  Kh8 {[%clk 0:00:04]} 49. Qh5+ {[%clk 0:00:15]}  Qxh5 {[%clk 0:00:03]} 50. h4 {[%clk 0:00:15]}  Qe5+ {[%clk 0:00:04]} 51. Kh3 {[%clk 0:00:15]}  Qg3# {[%clk 0:00:05]} 0-1


[Site "https://www.chess.com"]

[Event "Titled Tuesday Blitz May 4 2021"]
[White "Mchedlishvili, Mikheil"]
[Black "Yang, Kaiqi"]
[WhiteFideId "13600966"]
[BlackFideId "8604398"]
[WhiteElo "2618"]
[BlackElo "2373"]
[Result "0-1"]
[Round "05"]
[TimeControl "180+1"]
[Date "2021.05.04"]
[WhiteClock "0:00:05"]
[BlackClock "0:00:05"]

1. d4 {[%clk 0:02:59]}  d5 {[%clk 0:02:59]} 2. c4 {[%clk 0:02:57]}  c6 {[%clk 0:02:59]} 3. Nf3 {[%clk 0:02:57]}  Nf6 {[%clk 0:02:59]} 4. e3 {[%clk 0:02:57]}  e6 {[%clk 0:02:57]} 5. b3 {[%clk 0:02:57]}  Ne4 {[%clk 0:02:56]} 6. Bd3 {[%clk 0:02:53]}  f5 {[%clk 0:02:46]} 7. O-O {[%clk 0:02:52]}  Nd7 {[%clk 0:02:44]} 8. Qc2 {[%clk 0:02:50]}  Bd6 {[%clk 0:02:43]} 9. Ba3 {[%clk 0:02:50]}  Bxa3 {[%clk 0:02:39]} 10. Nxa3 {[%clk 0:02:49]}  O-O {[%clk 0:02:39]} 11. Nb1 {[%clk 0:02:50]}  Qf6 {[%clk 0:02:37]} 12. Nbd2 {[%clk 0:02:40]}  g5 {[%clk 0:02:36]} 13. Be2 {[%clk 0:02:04]}  g4 {[%clk 0:02:30]} 14. Ne1 {[%clk 0:02:04]}  Qg5 {[%clk 0:02:26]} 15. Nd3 {[%clk 0:02:02]}  Ndf6 {[%clk 0:02:04]} 16. Nf4 {[%clk 0:01:51]}  Bd7 {[%clk 0:01:50]} 17. f3 {[%clk 0:01:40]}  Nxd2 {[%clk 0:01:34]} 18. Qxd2 {[%clk 0:01:41]}  gxf3 {[%clk 0:01:26]} 19. Bxf3 {[%clk 0:01:41]}  Kh8 {[%clk 0:01:23]} 20. Rac1 {[%clk 0:01:25]}  Rg8 {[%clk 0:01:21]} 21. Qb4 {[%clk 0:01:10]}  b6 {[%clk 0:01:02]} 22. Qd6 {[%clk 0:01:08]}  Rae8 {[%clk 0:00:56]} 23. b4 {[%clk 0:01:04]}  Rg7 {[%clk 0:00:51]} 24. a4 {[%clk 0:00:43]}  h5 {[%clk 0:00:44]} 25. b5 {[%clk 0:00:39]}  cxb5 {[%clk 0:00:43]} 26. cxb5 {[%clk 0:00:39]}  h4 {[%clk 0:00:42]} 27. h3 {[%clk 0:00:32]}  Reg8 {[%clk 0:00:28]} 28. Qe5 {[%clk 0:00:21]}  Kh7 {[%clk 0:00:23]} 29. Rc7 {[%clk 0:00:20]}  Ne4 {[%clk 0:00:03]} 30. Bxe4 {[%clk 0:00:15]}  dxe4 {[%clk 0:00:03]} 31. Qd6 {[%clk 0:00:09]}  Qg3 {[%clk 0:00:03]} 32. Rxd7 {[%clk 0:00:07]}  Qxe3+ {[%clk 0:00:03]} 33. Kh1 {[%clk 0:00:07]}  Qg3 {[%clk 0:00:01]} 34. Rxg7+ {[%clk 0:00:06]}  Rxg7 {[%clk 0:00:02]} 35. Qxe6 {[%clk 0:00:06]}  e3 {[%clk 0:00:02]} 36. Qxf5+ {[%clk 0:00:06]}  Kh8 {[%clk 0:00:03]} 37. Qe4 {[%clk 0:00:06]}  e2 {[%clk 0:00:03]} 38. Qxe2 {[%clk 0:00:06]}  Rf7 {[%clk 0:00:02]} 39. Qh5+ {[%clk 0:00:06]}  Kg7 {[%clk 0:00:02]} 40. Qg4+ {[%clk 0:00:06]}  Qxg4 {[%clk 0:00:02]} 41. hxg4 {[%clk 0:00:07]}  Kh6 {[%clk 0:00:02]} 42. Kh2 {[%clk 0:00:06]}  Rd7 {[%clk 0:00:02]} 43. Rd1 {[%clk 0:00:05]}  Kg5 {[%clk 0:00:02]} 44. Nh3+ {[%clk 0:00:05]}  Kxg4 {[%clk 0:00:03]} 45. d5 {[%clk 0:00:05]}  Rd6 {[%clk 0:00:03]} 46. Nf2+ {[%clk 0:00:05]}  Kf4 {[%clk 0:00:04]} 47. Rd4+ {[%clk 0:00:05]}  Ke3 {[%clk 0:00:04]} 48. Re4+ {[%clk 0:00:03]}  Kxf2 {[%clk 0:00:04]} 49. Re5 {[%clk 0:00:03]}  Rg6 {[%clk 0:00:04]} 50. Kh3 {[%clk 0:00:03]}  Rg3+ {[%clk 0:00:02]} 51. Kxh4 {[%clk 0:00:03]}  Rxg2 {[%clk 0:00:02]} 52. Rf5+ {[%clk 0:00:04]}  Ke3 {[%clk 0:00:02]} 53. d6 {[%clk 0:00:04]}  Rd2 {[%clk 0:00:02]} 54. Rf6 {[%clk 0:00:04]}  Kd4 {[%clk 0:00:03]} 55. Kg5 {[%clk 0:00:04]}  Kc5 {[%clk 0:00:03]} 56. Kf5 {[%clk 0:00:03]}  Rxd6 {[%clk 0:00:03]} 57. Rxd6 {[%clk 0:00:03]}  Kxd6 {[%clk 0:00:03]} 58. Kf6 {[%clk 0:00:03]}  Kc5 {[%clk 0:00:03]} 59. Ke7 {[%clk 0:00:03]}  Kb4 {[%clk 0:00:04]} 60. Kd6 {[%clk 0:00:04]}  Kxa4 {[%clk 0:00:04]} 61. Kc6 {[%clk 0:00:04]}  Kb4 {[%clk 0:00:05]} 62. Kb7 {[%clk 0:00:05]}  Kxb5 {[%clk 0:00:05]} 0-1


[Site "https://www.chess.com"]

[Event "Titled Tuesday Blitz May 4 2021"]
[White "Mezentsev, Ivan"]
[Black "Bortnyk, Olexandr"]
[WhiteFideId "13706195"]
[BlackFideId "14120828"]
[WhiteElo "2295"]
[BlackElo "2723"]
[Result "0-1"]
[Round "05"]
[TimeControl "180+1"]
[Date "2021.05.04"]
[WhiteClock "0:00:01"]
[BlackClock "0:00:18"]

1. d4 {[%clk 0:03:00]}  d6 {[%clk 0:02:59]} 2. Nf3 {[%clk 0:03:00]}  Nf6 {[%clk 0:02:59]} 3. Bf4 {[%clk 0:02:59]}  g6 {[%clk 0:02:59]} 4. e3 {[%clk 0:02:59]}  Bg7 {[%clk 0:03:00]} 5. h3 {[%clk 0:02:59]}  O-O {[%clk 0:03:00]} 6. Be2 {[%clk 0:02:59]}  b6 {[%clk 0:03:01]} 7. O-O {[%clk 0:02:59]}  Bb7 {[%clk 0:03:02]} 8. a4 {[%clk 0:02:58]}  a6 {[%clk 0:03:03]} 9. c3 {[%clk 0:02:57]}  Nbd7 {[%clk 0:03:03]} 10. Na3 {[%clk 0:02:57]}  Qe8 {[%clk 0:02:59]} 11. Bh2 {[%clk 0:02:53]}  e5 {[%clk 0:02:59]} 12. Nd2 {[%clk 0:02:53]}  Qe7 {[%clk 0:02:57]} 13. Bf3 {[%clk 0:02:52]}  d5 {[%clk 0:02:46]} 14. Re1 {[%clk 0:02:32]}  c5 {[%clk 0:02:31]} 15. Nb3 {[%clk 0:01:51]}  Rad8 {[%clk 0:02:08]} 16. dxc5 {[%clk 0:01:39]}  Nxc5 {[%clk 0:02:04]} 17. a5 {[%clk 0:01:18]}  Nxb3 {[%clk 0:01:39]} 18. Qxb3 {[%clk 0:01:15]}  b5 {[%clk 0:01:40]} 19. Nc2 {[%clk 0:01:13]}  Rfe8 {[%clk 0:01:30]} 20. Nb4 {[%clk 0:01:12]}  Qc5 {[%clk 0:01:27]} 21. Red1 {[%clk 0:01:05]}  Ne4 {[%clk 0:00:37]} 22. Bxe4 {[%clk 0:00:37]}  dxe4 {[%clk 0:00:37]} 23. Bg3 {[%clk 0:00:37]}  Bf6 {[%clk 0:00:33]} 24. Rxd8 {[%clk 0:00:21]}  Rxd8 {[%clk 0:00:34]} 25. Rd1 {[%clk 0:00:21]}  h5 {[%clk 0:00:35]} 26. h4 {[%clk 0:00:18]}  Kg7 {[%clk 0:00:33]} 27. Kh2 {[%clk 0:00:17]}  Qe7 {[%clk 0:00:18]} 28. Rxd8 {[%clk 0:00:07]}  Qxd8 {[%clk 0:00:19]} 29. Qc2 {[%clk 0:00:06]}  Qxa5 {[%clk 0:00:19]} 30. Qd2 {[%clk 0:00:06]}  Qc7 {[%clk 0:00:18]} 31. Kg1 {[%clk 0:00:03]}  Qe7 {[%clk 0:00:18]} 32. Nd5 {[%clk 0:00:03]}  Qd8 {[%clk 0:00:17]} 33. c4 {[%clk 0:00:02]}  bxc4 {[%clk 0:00:18]} 34. Qb4 {[%clk 0:00:01]}  Qxd5 {[%clk 0:00:18]} 0-1


[Site "https://www.chess.com"]